[Event "FIDE World Junior U20-ch Girls 2025"]
[Site "Petrovac"]
[Date "2025.03.01"]
[Round "5.46"]
[White "Kaloki, Zuri"]
[Black "Zito, Enrica"]
[Result "0-1"]
[Annotator "NA"]
[ECO "C55"]
[WhiteElo "1784"]
[BlackElo "1941"]
[PlyCount "60"]
[EventDate "2025.02.23"]
[EventType "swiss"]
[EventCountry "MNE"]
[SourceTitle "playchess.com"]
[Source "ChessBase"]
[SourceQuality "1"]
[TimeControl "40/5400+30:1800+30"]

1. e4 {[%emt 0:00:03]} e5 {[%emt 0:00:03]} 2. Nf3 {[%emt 0:00:06]} Nc6 {[%emt 0:00:02]} 3. Bc4 {[%emt 0:00:08]} Nf6 {[%emt 0:00:04]} 4. d3 {[%emt 0:00:29]} h6 {[%emt 0:00:06]} 5. O-O {[%emt 0:00:44]} d6 {[%emt 0:00:03]} 6. h3 {[%emt 0:00:00]} Na5 {[%emt 0:01:34]} 7. Bb3 {[%emt 0:00:17]} Nxb3 {[%emt 0:00:14]} 8. axb3 {[%emt 0:00:07]} g5 {[%emt 0:08:51]} 9. Nh2 {[%emt 0:14:37]} Be6 {[%emt 0:02:18]} 10. Nc3 {[%emt 0:02:46]} Qd7 {[%emt 0:05:33]} 11. d4 {[%emt 0:07:05]} exd4 12. Qxd4 {[%emt 0:00:40]} Bg7 {[%emt 0:05:04]} 13. Rxa7 {[%emt 0:02:48]} Rxa7 {[%emt 0:03:04]} 14. Qxa7 {[%emt 0:00:11]} O-O {[%emt 0:03:10]} 15. f4 {[%emt 0:08:41]} gxf4 16. Bxf4 {[%emt 0:00:36]} Nh5 {[%emt 0:06:08]} 17. Bd2 {[%emt 0:15:10]} c5 {[%emt 0:01:54]} 18. Qa4 {[%emt 0:01:35]} Bd4+ {[%emt 0:00:07]} 19. Rf2 {[%emt 0:00:27]} Qe7 {[%emt 0:02:42]} 20. Nf3 {[%emt 0:01:49]} Bxf2+ {[%emt 0:00:25]} 21. Kxf2 {[%emt 0:00:06]} Qf6 {[%emt 0:01:51]} 22. Nd5 {[%emt 0:02:06]} Qg7 {[%emt 0:01:09]} 23. g4 {[%emt 0:02:11]} Bxd5 {[%emt 0:05:06]} 24. exd5 {[%emt 0:00:31]} Nf6 {[%emt 0:00:13]} 25. Qf4 {[%emt 0:03:00]} Re8 {[%emt 0:08:00]} 26. Kg1 {[%emt 0:15:50]} Ne4 {[%emt 0:01:34]} 27. Qxh6 {[%emt 0:02:58]} Qxb2 {[%emt 0:01:06]} 28. Ng5 {[%emt 0:11:14]} Qd4+ {[%emt 0:00:24]} 29. Kh1 {[%emt 0:00:23]} Ng3+ {[%emt 0:00:03]} 30. Kg2 {[%emt 0:00:55]} Re2+ {[%emt 0:00:03]} 0-1

[Event "FIDE World Junior U20-ch Girls 2025"]
[Site "Petrovac"]
[Date "2025.03.02"]
[Round "6.1"]
[White "Allahverdiyeva, Ayan"]
[Black "Mgeladze, Kesaria"]
[Result "1/2-1/2"]
[Annotator "ChessBase"]
[ECO "B67"]
[WhiteElo "2284"]
[BlackElo "2219"]
[PlyCount "70"]
[EventDate "2025.02.23"]
[EventType "swiss"]
[EventCountry "MNE"]
[SourceTitle "playchess.com"]
[Source "ChessBase"]
[SourceQuality "1"]
[TimeControl "40/5400+30:1800+30"]

1. e4 {[%emt 0:00:02]} c5 {[%emt 0:00:05]} 2. Nf3 {[%emt 0:00:21]} d6 {[%emt 0:00:05]} 3. d4 {[%emt 0:00:13]} cxd4 {[%emt 0:00:06]} 4. Nxd4 {[%emt 0:00:02]} Nf6 {[%emt 0:00:06]} 5. Nc3 {[%emt 0:00:03]} Nc6 {[%emt 0:00:05]} 6. Bg5 {[%emt 0:00:41]} e6 {[%emt 0:00:06]} 7. Qd2 {[%emt 0:00:03]} a6 {[%emt 0:00:06]} 8. O-O-O {[%emt 0:00:04]} Bd7 {[%emt 0:00:06]} 9. f4 {[%emt 0:00:14]} b5 {[%emt 0:00:14]} 10. Bxf6 {[%emt 0:00:20]} gxf6 {[%emt 0:00:05]} 11. Nxc6 {[%emt 0:00:21]} Bxc6 {[%emt 0:00:06]} 12. Kb1 {[%emt 0:00:26]} Qb6 {[%emt 0:03:32]} 13. f5 {[%emt 0:00:07]} O-O-O {[%emt 0:00:08]} 14. fxe6 {[%emt 0:00:45]} fxe6 {[%emt 0:00:04]} 15. Bd3 {[%emt 0:02:02]} Kb8 {[%emt 0:00:33]} 16. Rhf1 {[%emt 0:00:40]} Be7 {[%emt 0:00:26]} 17. a3 {[%emt 0:03:04]} a5 {[%emt 0:01:17]} 18. Ne2 {[%emt 0:07:15]} d5 {[%emt 0:10:37]} 19. exd5 {[%emt 0:03:42]} Bxd5 {[%emt 0:00:05]} 20. Nf4 {[%emt 0:04:10]} b4 {[%emt 0:14:16]} 21. Nxd5 {[%emt 0:03:26]} Rxd5 {[%emt 0:00:37]} 22. a4 {[%emt 0:02:02]} b3 {[%emt 0:19:51]} 23. Qe2 {[%emt 0:22:51]} bxc2+ {[%emt 0:11:15]} 24. Bxc2 {[%emt 0:00:45]} Ba3 {[%emt 0:02:17]} 25. Bd3 {[%emt 0:06:55]} Rhd8 {[%emt 0:04:16]} 26. Bb5 {[%emt 0:00:37]} Rxd1+ {[%emt 0:01:21]} 27. Rxd1 {[%emt 0:00:03]} Rxd1+ {[%emt 0:00:40]} 28. Qxd1 {[%emt 0:00:04]} Bb4 {[%emt 0:05:23]} 29. h3 {[%emt 0:08:58]} Qd6 {[%emt 0:05:18]} 30. Qg4 {[%emt 0:01:21]} Kb7 {[%emt 0:02:14]} 31. Qe4+ {[%emt 0:00:19]} Kb6 {[%emt 0:00:35]} 32. Bc4 {[%emt 0:00:28]} Qd1+ {[%emt 0:00:10]} 33. Ka2 {[%emt 0:00:09]} Qxa4+ {[%emt 0:00:04]} 34. Kb1 {[%emt 0:00:03]} Qd1+ {[%emt 0:00:27]} 35. Ka2 {[%emt 0:00:09]} Qa4+ {[%emt 0:00:08]} 1/2-1/2

[Event "FIDE World Junior U20-ch Girls 2025"]
[Site "Petrovac"]
[Date "2025.03.02"]
[Round "6.2"]
[White "Omonova, Umida"]
[Black "Hrebenshchykova, Yelyzaveta"]
[Result "1/2-1/2"]
[Annotator "ChessBase"]
[ECO "B51"]
[WhiteElo "2228"]
[BlackElo "2259"]
[PlyCount "86"]
[EventDate "2025.02.23"]
[EventType "swiss"]
[EventCountry "MNE"]
[SourceTitle "playchess.com"]
[Source "ChessBase"]
[SourceQuality "1"]
[TimeControl "40/5400+30:1800+30"]

1. e4 {[%emt 0:00:46]} c5 {[%emt 0:00:04]} 2. Nf3 {[%emt 0:00:17]} d6 {[%emt 0:00:04]} 3. Bb5+ {[%emt 0:01:31]} Nc6 {[%emt 0:00:06]} 4. O-O {[%emt 0:00:08]} Bd7 {[%emt 0:00:03]} 5. Re1 {[%emt 0:01:26]} Nf6 {[%emt 0:03:31]} 6. c3 {[%emt 0:00:42]} a6 {[%emt 0:00:39]} 7. Bf1 {[%emt 0:00:26]} Bg4 {[%emt 0:00:50]} 8. h3 {[%emt 0:00:53]} Bxf3 {[%emt 0:00:16]} 9. Qxf3 {[%emt 0:00:09]} e6 {[%emt 0:00:19]} 10. d3 {[%emt 0:01:45]} Be7 {[%emt 0:00:06]} 11. Be3 {[%emt 0:02:37]} d5 {[%emt 0:06:26]} 12. Nd2 {[%emt 0:03:00]} O-O {[%emt 0:07:33]} 13. exd5 {[%emt 0:03:37]} Nxd5 {[%emt 0:02:48]} 14. Ne4 {[%emt 0:04:40]} b6 {[%emt 0:19:52]} 15. Bd2 {[%emt 0:10:22]} Qd7 {[%emt 0:01:02]} 16. Ng3 {[%emt 0:01:28]} b5 {[%emt 0:05:08]} 17. Nh5 {[%emt 0:04:34]} Nf6 {[%emt 0:09:16]} 18. Nxf6+ {[%emt 0:02:22]} Bxf6 {[%emt 0:00:03]} 19. Be3 {[%emt 0:00:12]} Qd6 {[%emt 0:02:53]} 20. a3 {[%emt 0:01:40]} Rac8 {[%emt 0:06:09]} 21. Rac1 {[%emt 0:02:37]} Ne7 {[%emt 0:03:51]} 22. Bf4 {[%emt 0:04:42]} Qd7 {[%emt 0:00:04]} 23. g4 {[%emt 0:01:32]} Ng6 {[%emt 0:04:20]} 24. Bg3 {[%emt 0:03:28]} Bg5 {[%emt 0:04:09]} 25. Rcd1 {[%emt 0:00:17]} f5 {[%emt 0:00:04]} 26. d4 {[%emt 0:06:25]} Nh4 {[%emt 0:05:51]} 27. Bxh4 {[%emt 0:04:04]} Bxh4 {[%emt 0:00:04]} 28. Re2 {[%emt 0:04:31]} Rf6 {[%emt 0:04:39]} 29. gxf5 {[%emt 0:01:32]} Rxf5 {[%emt 0:00:15]} 30. Qe4 {[%emt 0:00:21]} Qe7 {[%emt 0:05:34]} 31. Qxf5 {[%emt 0:07:10]} exf5 {[%emt 0:00:06]} 32. Rxe7 {[%emt 0:00:05]} Bxe7 {[%emt 0:00:02]} 33. dxc5 {[%emt 0:00:45]} Rxc5 {[%emt 0:03:40]} 34. Rd7 {[%emt 0:03:09]} Bg5 {[%emt 0:00:04]} 35. Rd1 {[%emt 0:02:49]} g6 {[%emt 0:01:15]} 36. Kg2 {[%emt 0:00:06]} Rc6 {[%emt 0:05:09]} 37. Kf3 {[%emt 0:00:39]} Kf8 {[%emt 0:00:46]} 38. Be2 {[%emt 0:02:31]} Ke7 {[%emt 0:00:45]} 39. Ra1 {[%emt 0:00:11]} Rb6 {[%emt 0:00:44]} 40. a4 {[%emt 0:05:20]} bxa4 {[%emt 0:00:42]} 41. Rxa4 {[%emt 0:30:06]} Rxb2 {[%emt 0:30:48]} 42. Rxa6 {[%emt 0:00:10]} Rb3 {[%emt 0:00:00]} 43. Ra7+ {[%emt 0:00:00]} Kf6 {[%emt 0:00:00]} 1/2-1/2

[Event "FIDE World Junior U20-ch Girls 2025"]
[Site "Petrovac"]
[Date "2025.03.02"]
[Round "6.3"]
[White "Velpula Sarayu"]
[Black "Yakimova, Mariya"]
[Result "0-1"]
[Annotator "ChessBase"]
[ECO "B33"]
[WhiteElo "2315"]
[BlackElo "2201"]
[PlyCount "70"]
[EventDate "2025.02.23"]
[EventType "swiss"]
[EventCountry "MNE"]
[SourceTitle "playchess.com"]
[Source "ChessBase"]
[SourceQuality "1"]
[TimeControl "40/5400+30:1800+30"]

1. e4 {[%emt 0:00:54]} c5 {[%emt 0:00:06]} 2. Nf3 {[%emt 0:00:30]} Nc6 {[%emt 0:00:08]} 3. d4 {[%emt 0:00:44]} cxd4 {[%emt 0:00:07]} 4. Nxd4 {[%emt 0:00:37]} Nf6 {[%emt 0:00:15]} 5. Nc3 {[%emt 0:00:47]} e5 {[%emt 0:00:07]} 6. Ndb5 {[%emt 0:00:40]} d6 {[%emt 0:00:16]} 7. Nd5 {[%emt 0:00:45]} Nxd5 {[%emt 0:00:12]} 8. exd5 {[%emt 0:00:10]} Nb8 {[%emt 0:00:16]} 9. a4 {[%emt 0:00:36]} Be7 {[%emt 0:00:12]} 10. Be2 {[%emt 0:00:34]} O-O {[%emt 0:00:10]} 11. O-O {[%emt 0:00:38]} Nd7 {[%emt 0:00:10]} 12. b4 {[%emt 0:02:46]} a6 {[%emt 0:00:14]} 13. Na3 {[%emt 0:00:38]} b6 {[%emt 0:00:50]} 14. Nc4 {[%emt 0:06:14]} a5 {[%emt 0:00:13]} 15. Rb1 {[%emt 0:08:20]} f5 {[%emt 0:02:33]} 16. f4 {[%emt 0:12:04]} Qc7 {[%emt 0:01:39]} 17. c3 {[%emt 0:09:58]} Ba6 {[%emt 0:10:04]} 18. Qb3 {[%emt 0:20:03]} Kh8 {[%emt 0:04:30]} 19. Ba3 {[%emt 0:06:21]} Rac8 {[%emt 0:25:14]} 20. b5 {[%emt 0:01:56]} Bb7 {[%emt 0:01:22]} 21. fxe5 {[%emt 0:01:44]} Nxe5 {[%emt 0:00:34]} 22. Nxe5 {[%emt 0:00:12]} dxe5 {[%emt 0:00:04]} 23. Bxe7 {[%emt 0:00:09]} Qxe7 {[%emt 0:00:04]} 24. c4 {[%emt 0:00:09]} f4 {[%emt 0:05:58]} 25. Qd3 {[%emt 0:07:55]} Rce8 {[%emt 0:09:59]} 26. Qe4 {[%emt 0:03:54]} Bc8 {[%emt 0:01:07]} 27. g4 {[%emt 0:01:29]} Qg5 {[%emt 0:03:58]} 28. Rb3 {[%emt 0:02:02]} Bf5 {[%emt 0:01:13]} 29. Qg2 {[%emt 0:07:39]} Bg6 {[%emt 0:00:56]} 30. Qf2 {[%emt 0:01:33]} e4 {[%emt 0:03:31]} 31. h4 {[%emt 0:01:49]} Qe5 {[%emt 0:00:28]} 32. h5 {[%emt 0:01:42]} e3 {[%emt 0:01:51]} 33. Qh2 {[%emt 0:00:49]} Bc2 {[%emt 0:00:14]} 34. Ra3 {[%emt 0:00:23]} Qb2 {[%emt 0:08:00]} 35. Raa1 {[%emt 0:00:29]} f3 {[%emt 0:00:34]} 0-1

[Event "FIDE World Junior U20-ch Girls 2025"]
[Site "Petrovac"]
[Date "2025.03.02"]
[Round "6.4"]
[White "Zhapova, Yana"]
[Black "Shukhman, Anna"]
[Result "1/2-1/2"]
[Annotator "ChessBase"]
[ECO "B67"]
[WhiteElo "2234"]
[BlackElo "2365"]
[PlyCount "70"]
[EventDate "2025.02.23"]
[EventType "swiss"]
[EventCountry "MNE"]
[SourceTitle "playchess.com"]
[Source "ChessBase"]
[SourceQuality "1"]
[TimeControl "40/5400+30:1800+30"]

1. e4 {[%emt 0:01:57]} c5 {[%emt 0:00:08]} 2. Nf3 {[%emt 0:00:19]} d6 {[%emt 0:00:03]} 3. d4 {[%emt 0:00:25]} cxd4 {[%emt 0:00:02]} 4. Nxd4 {[%emt 0:00:18]} Nf6 {[%emt 0:00:03]} 5. Nc3 {[%emt 0:00:13]} Nc6 {[%emt 0:00:02]} 6. Bg5 {[%emt 0:03:08]} e6 {[%emt 0:00:04]} 7. Qd2 {[%emt 0:01:36]} a6 {[%emt 0:00:16]} 8. O-O-O {[%emt 0:00:25]} Bd7 {[%emt 0:00:18]} 9. f3 {[%emt 0:08:46]} Nxd4 {[%emt 0:00:12]} 10. Qxd4 {[%emt 0:00:07]} h6 {[%emt 0:00:13]} 11. Be3 {[%emt 0:03:14]} Bc6 {[%emt 0:00:03]} 12. h4 {[%emt 0:03:14]} d5 {[%emt 0:02:34]} 13. exd5 {[%emt 0:01:33]} Nxd5 {[%emt 0:00:22]} 14. Nxd5 {[%emt 0:03:25]} Qxd5 {[%emt 0:01:43]} 15. Bc4 {[%emt 0:04:18]} Qxd4 {[%emt 0:11:43]} 16. Bxd4 {[%emt 0:00:06]} Rc8 {[%emt 0:00:24]} 17. Bd3 {[%emt 0:02:20]} h5 {[%emt 0:04:08]} 18. Rd2 {[%emt 0:02:40]} Rg8 {[%emt 0:09:19]} 19. Bh7 {[%emt 0:03:02]} Rh8 {[%emt 0:00:05]} 20. Bd3 {[%emt 0:00:10]} b5 {[%emt 0:13:44]} 21. Re2 {[%emt 0:06:13]} Bd5 {[%emt 0:02:52]} 22. Kb1 {[%emt 0:02:34]} Bc4 {[%emt 0:13:46]} 23. Bxc4 {[%emt 0:01:52]} Rxc4 {[%emt 0:00:03]} 24. c3 {[%emt 0:00:28]} Rc6 {[%emt 0:03:16]} 25. Rhe1 {[%emt 0:03:45]} Kd7 {[%emt 0:10:51]} 26. Rd1 {[%emt 0:01:48]} Rd6 {[%emt 0:00:15]} 27. Red2 {[%emt 0:00:46]} Kc6 {[%emt 0:00:20]} 28. b3 {[%emt 0:02:05]} Be7 {[%emt 0:00:24]} 29. Bxg7 {[%emt 0:03:36]} Rg8 {[%emt 0:01:34]} 30. Be5 {[%emt 0:01:16]} Rxd2 {[%emt 0:01:15]} 31. Rxd2 {[%emt 0:00:06]} Bxh4 {[%emt 0:02:49]} 32. Rd6+ {[%emt 0:02:02]} Kb7 {[%emt 0:00:03]} 33. Rd7+ {[%emt 0:00:55]} Kc6 {[%emt 0:00:05]} 34. Rd6+ {[%emt 0:00:59]} Kb7 {[%emt 0:00:05]} 35. Rd7+ {[%emt 0:00:15]} Kc6 {[%emt 0:00:03]} 1/2-1/2

[Event "FIDE World Junior U20-ch Girls 2025"]
[Site "Petrovac"]
[Date "2025.03.02"]
[Round "6.5"]
[White "Karmanova, Olga Dm."]
[Black "Lu, Miaoyi"]
[Result "1/2-1/2"]
[Annotator "ChessBase"]
[ECO "A18"]
[WhiteElo "2292"]
[BlackElo "2432"]
[PlyCount "145"]
[EventDate "2025.02.23"]
[EventType "swiss"]
[EventCountry "MNE"]
[SourceTitle "playchess.com"]
[Source "ChessBase"]
[SourceQuality "1"]
[TimeControl "40/5400+30:1800+30"]

1. c4 {[%emt 0:00:03]} Nf6 {[%emt 0:02:30]} 2. Nc3 {[%emt 0:00:07]} e6 {[%emt 0:00:07]} 3. e4 {[%emt 0:00:09]} d5 {[%emt 0:04:12]} 4. e5 {[%emt 0:00:10]} d4 {[%emt 0:00:30]} 5. exf6 {[%emt 0:00:07]} dxc3 {[%emt 0:00:02]} 6. bxc3 {[%emt 0:00:08]} Qxf6 {[%emt 0:00:03]} 7. Nf3 {[%emt 0:00:07]} Nc6 {[%emt 0:07:11]} 8. Bd3 {[%emt 0:00:07]} e5 {[%emt 0:02:31]} 9. O-O {[%emt 0:00:17]} Bd6 {[%emt 0:10:05]} 10. Re1 {[%emt 0:05:04]} O-O {[%emt 0:00:11]} 11. Be4 {[%emt 0:11:36]} Bf5 {[%emt 0:14:14]} 12. Qc2 {[%emt 0:10:52]} Bxe4 {[%emt 0:12:52]} 13. Qxe4 {[%emt 0:00:11]} Qg6 {[%emt 0:03:03]} 14. Qxg6 {[%emt 0:04:29]} hxg6 {[%emt 0:00:02]} 15. d4 {[%emt 0:00:22]} exd4 {[%emt 0:09:41]} 16. cxd4 {[%emt 0:00:06]} b6 {[%emt 0:01:34]} 17. Be3 {[%emt 0:02:21]} Rad8 {[%emt 0:03:28]} 18. Red1 {[%emt 0:07:09]} Rd7 {[%emt 0:06:07]} 19. Kf1 {[%emt 0:05:03]} Rfd8 {[%emt 0:00:52]} 20. Ke2 {[%emt 0:00:56]} f6 {[%emt 0:06:38]} 21. Rac1 {[%emt 0:06:50]} g5 {[%emt 0:02:02]} 22. d5 {[%emt 0:03:32]} Nb4 {[%emt 0:06:52]} 23. Rd2 {[%emt 0:01:56]} Na6 {[%emt 0:05:03]} 24. Nd4 {[%emt 0:01:20]} Nc5 {[%emt 0:00:02]} 25. Nc6 {[%emt 0:01:47]} Ra8 {[%emt 0:00:24]} 26. Rd4 {[%emt 0:10:50]} a5 {[%emt 0:01:22]} 27. h4 {[%emt 0:00:22]} gxh4 {[%emt 0:00:14]} 28. Rxh4 {[%emt 0:00:20]} Rf7 {[%emt 0:01:45]} 29. Rch1 {[%emt 0:02:47]} Rff8 {[%emt 0:00:02]} 30. Nd4 {[%emt 0:00:58]} Kf7 {[%emt 0:00:25]} 31. Nf5 {[%emt 0:01:44]} Rfe8 {[%emt 0:01:10]} 32. Kf3 {[%emt 0:11:41]} Nd3 {[%emt 0:00:25]} 33. g3 {[%emt 0:04:08]} Bf8 {[%emt 0:00:38]} 34. Kg2 {[%emt 0:00:42]} Ne5 {[%emt 0:00:07]} 35. Rc1 {[%emt 0:01:12]} Rac8 {[%emt 0:00:22]} 36. Nd4 {[%emt 0:02:05]} c6 {[%emt 0:00:25]} 37. dxc6 {[%emt 0:02:16]} Bc5 {[%emt 0:00:02]} 38. Nb5 {[%emt 0:01:31]} Bxe3 {[%emt 0:00:25]} 39. fxe3 {[%emt 0:00:56]} Rxc6 {[%emt 0:00:06]} 40. Rd4 {[%emt 0:00:10]} Ke6 {[%emt 0:02:08]} 41. Rh4 {[%emt 0:33:54]} Rc5 {[%emt 0:10:52]} 42. a4 {[%emt 0:00:00]} Rec8 {[%emt 0:14:22]} 43. Na3 {[%emt 0:00:00]} g5 {[%emt 0:03:56]} 44. Rd4 {[%emt 0:00:00]} f5 {[%emt 0:02:11]} 45. Rb1 {[%emt 0:00:00]} R8c6 {[%emt 0:00:18]} 46. Rc1 {[%emt 0:00:00]} g4 {[%emt 0:00:20]} 47. e4 {[%emt 0:00:00]} Nf3 {[%emt 0:00:43]} 48. exf5+ {[%emt 0:00:00]} Kxf5 {[%emt 0:00:02]} 49. Rf4+ {[%emt 0:00:00]} Kg5 {[%emt 0:00:03]} 50. Nb5 {[%emt 0:00:00]} Rh6 {[%emt 0:01:48]} 51. Rh1 {[%emt 0:01:26]} Rxh1 {[%emt 0:00:04]} 52. Kxh1 {[%emt 0:00:05]} Re5 {[%emt 0:00:43]} 53. Nc3 {[%emt 0:00:11]} Nd2 {[%emt 0:01:06]} 54. Rd4 {[%emt 0:00:49]} Nf1 {[%emt 0:00:22]} 55. Kg2 {[%emt 0:00:43]} Nxg3 {[%emt 0:00:38]} 56. Rd5 {[%emt 0:01:10]} Rxd5 {[%emt 0:00:04]} 57. Nxd5 {[%emt 0:00:04]} Nf5 {[%emt 0:00:54]} 58. Nxb6 {[%emt 0:00:04]} Kf4 {[%emt 0:00:25]} 59. c5 {[%emt 0:00:28]} Nh4+ {[%emt 0:00:20]} 60. Kg1 {[%emt 0:00:45]} Nf3+ {[%emt 0:00:34]} 61. Kg2 {[%emt 0:00:12]} Nh4+ {[%emt 0:00:36]} 62. Kg1 {[%emt 0:00:04]} Ke5 {[%emt 0:00:40]} 63. Nc4+ {[%emt 0:00:06]} Kd5 {[%emt 0:00:09]} 64. Nxa5 {[%emt 0:00:08]} Kxc5 {[%emt 0:00:04]} 65. Kf2 {[%emt 0:00:07]} Nf5 {[%emt 0:00:09]} 66. Nb3+ {[%emt 0:00:11]} Kc4 {[%emt 0:00:44]} 67. Nd2+ {[%emt 0:00:08]} Kb4 {[%emt 0:00:18]} 68. Ne4 {[%emt 0:00:11]} Kxa4 {[%emt 0:00:05]} 69. Nf6 {[%emt 0:00:06]} g3+ {[%emt 0:00:05]} 70. Kg2 {[%emt 0:00:03]} Kb5 {[%emt 0:00:05]} 71. Ne4 {[%emt 0:00:05]} Kc4 {[%emt 0:00:04]} 72. Nxg3 {[%emt 0:00:04]} Nxg3 {[%emt 0:00:03]} 73. Kxg3 {[%emt 0:00:04]} 1/2-1/2

[Event "FIDE World Junior U20-ch Girls 2025"]
[Site "Petrovac"]
[Date "2025.03.02"]
[Round "6.6"]
[White "Gaal, Zsoka"]
[Black "Mungunzul, Bat-Erdene"]
[Result "1/2-1/2"]
[Annotator "ChessBase"]
[ECO "D10"]
[WhiteElo "2404"]
[BlackElo "2268"]
[PlyCount "85"]
[EventDate "2025.02.23"]
[EventType "swiss"]
[EventCountry "MNE"]
[SourceTitle "playchess.com"]
[Source "ChessBase"]
[SourceQuality "1"]
[TimeControl "40/5400+30:1800+30"]

1. d4 {[%emt 0:00:06]} d5 {[%emt 0:00:10]} 2. c4 {[%emt 0:00:07]} c6 {[%emt 0:00:09]} 3. Nc3 {[%emt 0:00:11]} Nf6 {[%emt 0:00:37]} 4. e3 {[%emt 0:00:10]} a6 {[%emt 0:00:55]} 5. Nf3 {[%emt 0:00:22]} Bf5 {[%emt 0:04:24]} 6. Qb3 {[%emt 0:01:09]} Ra7 {[%emt 0:01:07]} 7. a4 {[%emt 0:00:51]} e6 {[%emt 0:01:50]} 8. a5 {[%emt 0:01:39]} Nbd7 {[%emt 0:05:50]} 9. Nh4 {[%emt 0:01:12]} Bg4 {[%emt 0:03:55]} 10. h3 {[%emt 0:06:55]} Bh5 {[%emt 0:03:00]} 11. g4 {[%emt 0:01:14]} dxc4 {[%emt 0:00:25]} 12. Bxc4 {[%emt 0:06:42]} Nd5 {[%emt 0:00:47]} 13. Ng2 {[%emt 0:17:55]} Bg6 {[%emt 0:00:11]} 14. Nxd5 {[%emt 0:01:11]} exd5 {[%emt 0:03:07]} 15. Be2 {[%emt 0:01:47]} f6 {[%emt 0:21:25]} 16. Nf4 {[%emt 0:03:51]} Bf7 {[%emt 0:00:08]} 17. Bd3 {[%emt 0:05:31]} Bd6 {[%emt 0:05:09]} 18. Bd2 {[%emt 0:02:04]} Qe7 {[%emt 0:02:50]} 19. Kf1 {[%emt 0:00:48]} O-O {[%emt 0:05:58]} 20. Qc2 {[%emt 0:01:01]} g6 {[%emt 0:00:39]} 21. h4 {[%emt 0:01:02]} Kg7 {[%emt 0:09:32]} 22. h5 {[%emt 0:01:27]} g5 {[%emt 0:02:19]} 23. h6+ {[%emt 0:03:36]} Kh8 {[%emt 0:00:07]} 24. Nh5 {[%emt 0:00:52]} Rd8 {[%emt 0:03:04]} 25. Ng7 {[%emt 0:01:04]} Nf8 {[%emt 0:00:07]} 26. Re1 {[%emt 0:12:53]} Qc7 {[%emt 0:05:10]} 27. Kg2 {[%emt 0:01:30]} Raa8 {[%emt 0:00:18]} 28. Rhf1 {[%emt 0:00:29]} Ng6 {[%emt 0:01:03]} 29. Kh3 {[%emt 0:06:51]} Bf8 {[%emt 0:00:28]} 30. f4 {[%emt 0:03:58]} Bxg7 {[%emt 0:02:42]} 31. hxg7+ {[%emt 0:00:06]} Kxg7 {[%emt 0:00:03]} 32. fxg5 {[%emt 0:00:53]} fxg5 {[%emt 0:00:06]} 33. Rf5 {[%emt 0:00:14]} Qe7 {[%emt 0:02:31]} 34. Qc5 {[%emt 0:02:11]} h6 {[%emt 0:03:32]} 35. Bb4 {[%emt 0:10:44]} Qd7 {[%emt 0:04:55]} 36. Ref1 {[%emt 0:02:58]} Be6 {[%emt 0:00:07]} 37. Rf6 {[%emt 0:00:42]} Bxg4+ {[%emt 0:01:31]} 38. Kg3 {[%emt 0:00:37]} Nh8 {[%emt 0:00:36]} 39. Qd6 {[%emt 0:01:38]} Bh5 {[%emt 0:02:28]} 40. Qe5 {[%emt 0:00:23]} Qg4+ {[%emt 0:00:43]} 41. Kh2 {[%emt 0:03:41]} Qh4+ {[%emt 0:00:11]} 42. Kg2 {[%emt 0:00:55]} Qg4+ {[%emt 0:00:06]} 43. Kh2 {[%emt 0:02:43]} 1/2-1/2

[Event "FIDE World Junior U20-ch Girls 2025"]
[Site "Petrovac"]
[Date "2025.03.02"]
[Round "6.7"]
[White "Balabayeva, Xeniya"]
[Black "Song, Yuxin"]
[Result "1/2-1/2"]
[Annotator "ChessBase"]
[ECO "E46"]
[WhiteElo "2264"]
[BlackElo "2381"]
[PlyCount "54"]
[EventDate "2025.02.23"]
[EventType "swiss"]
[EventCountry "MNE"]
[SourceTitle "playchess.com"]
[Source "ChessBase"]
[SourceQuality "1"]
[TimeControl "40/5400+30:1800+30"]

1. d4 {[%emt 0:00:03]} Nf6 {[%emt 0:00:05]} 2. c4 {[%emt 0:00:09]} e6 {[%emt 0:00:06]} 3. Nc3 {[%emt 0:00:06]} Bb4 {[%emt 0:00:06]} 4. e3 {[%emt 0:00:07]} O-O {[%emt 0:00:23]} 5. Bd2 {[%emt 0:00:08]} c5 {[%emt 0:00:20]} 6. a3 {[%emt 0:00:54]} Bxc3 {[%emt 0:00:05]} 7. Bxc3 {[%emt 0:00:07]} Ne4 {[%emt 0:00:05]} 8. Ne2 {[%emt 0:00:50]} b6 {[%emt 0:00:13]} 9. d5 {[%emt 0:01:45]} Ba6 {[%emt 0:00:09]} 10. Qd3 {[%emt 0:00:08]} exd5 {[%emt 0:00:42]} 11. Qxd5 {[%emt 0:00:09]} Qe7 {[%emt 0:00:04]} 12. Rc1 {[%emt 0:09:23]} Nc6 {[%emt 0:09:44]} 13. Ng3 {[%emt 0:12:57]} Nxc3 {[%emt 0:04:15]} 14. Rxc3 {[%emt 0:00:07]} Qe6 {[%emt 0:07:39]} 15. Be2 {[%emt 0:04:16]} Ne7 {[%emt 0:09:21]} 16. Qxe6 {[%emt 0:16:29]} dxe6 {[%emt 0:01:33]} 17. O-O {[%emt 0:00:53]} Rfd8 {[%emt 0:04:17]} 18. b4 {[%emt 0:03:05]} Bb7 {[%emt 0:12:22]} 19. Rb1 {[%emt 0:06:49]} Rac8 {[%emt 0:04:35]} 20. b5 {[%emt 0:07:35]} Rd2 {[%emt 0:06:12]} 21. Rd3 {[%emt 0:07:10]} Rxd3 {[%emt 0:04:04]} 22. Bxd3 {[%emt 0:00:36]} Rd8 {[%emt 0:01:23]} 23. Rb3 {[%emt 0:09:01]} Nc8 {[%emt 0:07:48]} 24. a4 {[%emt 0:02:36]} a5 {[%emt 0:02:13]} 25. bxa6 {[%emt 0:05:21]} Bxa6 {[%emt 0:00:02]} 26. f3 {[%emt 0:00:39]} f5 {[%emt 0:00:52]} 27. Kf2 {[%emt 0:06:46]} Kf7 {[%emt 0:00:18]} 1/2-1/2